bitfinex-derivatives/quotes_SOLF0:USTF0_20220101
["timestamp","ask_amount","ask_price","bid_price","bid_amount"]
[1641023278180,43.1470055,173.23,173.15,27.66479]
[1641023278783,10.34194179,173.23,173.16,1.24783661]
[1641023279380,13.34194179,173.23,173.16,1.24783661]
[1641023279882,10.34194179,173.23,173.16,1.24783661]
[1641023280683,10.34194179,173.23,173.15,27.66479]
[1641023281183,16.98594179,173.23,173.15,27.66479]
[1641023283587,16.98594179,173.23,173.15,31.66479]
[1641023283786,16.98594179,173.23,173.15,27.66479]
[1641023284587,10.34194179,173.23,173.15,31.66479]
[1641023286989,27.66479,173.24,173.15,31.66479]
[1641023289692,63.46985371,173.27,173.16,1.24509622]
[1641023289892,63.46985371,173.27,173.16,31.51229622]
[1641023290292,60.46985371,173.27,173.16,31.51229622]
[1641023290492,32.80506371,173.25,173.16,31.51229622]
[1641023290694,37.14606371,173.25,173.16,31.51229622]
[1641023291093,37.14606371,173.25,173.17,1.24509622]
[1641023291293,37.14606371,173.25,173.18,27.66479]
[1641023291792,4.341,173.25,173.18,27.66479]
[1641023293996,4.341,173.25,173.18,21.10524837]
[1641023294495,10.33921525,173.26,173.18,21.10524837]
[1641023294995,10.33921525,173.26,173.19,1.24833101]
[1641023297203,13.33921525,173.26,173.19,1.24833101]
[1641023297605,13.33921525,173.26,173.18,21.10524837]
[1641023298001,3.0,173.25,173.18,21.10524837]
[1641023298203,13.33921525,173.26,173.18,21.10524837]
[1641023298705,32.80506371,173.25,173.18,21.10524837]
[1641023299403,43.14427896,173.26,173.18,21.10524837]
[1641023300606,10.33921525,173.26,173.18,21.10524837]
[1641023301206,43.14427896,173.26,173.18,21.10524837]
[1641023303508,10.33921525,173.26,173.19,1.24834659]
[1641023306213,27.66479,173.27,173.18,21.10524837]
[1641023306413,5.153,173.26,173.18,21.10524837]
[1641023307714,5.153,173.26,173.16,30.2672]
[1641023308014,8.153,173.26,173.16,30.2672]
[1641023308413,3.0,173.24,173.12,135.51505729]
[1641023308614,5.153,173.26,173.12,135.51505729]
[1641023308615,3.0,173.23,173.13,30.0914]
[1641023308816,3.0,173.24,173.13,30.0914]
[1641023309214,31.7134,173.23,173.13,30.0914]
[1641023309616,27.66479,173.21,173.13,30.0914]
[1641023310515,34.06779,173.21,173.13,30.0914]
[1641023312520,10.33992172,173.2,173.14,1.24823129]
[1641023313220,10.33992172,173.2,173.13,1.24823129]
[1641023313720,27.66479,173.17,173.13,1.24823129]
[1641023314120,34.13879,173.17,173.1,32.58893129]
[1641023315121,34.13879,173.17,173.09,12.33908511]
[1641023315323,10.33992172,173.16,173.06,44.00387511]
[1641023315521,41.85932172,173.16,173.07,30.5115]
[1641023315820,27.66479,173.14,173.07,30.5115]
[1641023316421,27.66479,173.14,173.08,1.24812044]
[1641023318022,4.10148496,173.11,173.08,1.24812044]
[1641023319724,4.10148496,173.12,173.08,19.649862]
[1641023320026,4.10148496,173.12,173.08,13.58720555]
[1641023320225,4.10148496,173.11,173.08,1.24812044]
[1641023321624,4.10148496,173.1,173.08,1.24812044]
[1641023322724,10.24248496,173.1,173.08,1.24812044]
[1641023322925,4.10148496,173.09,173.07,1.24812044]
[1641023323826,4.10148496,173.09,173.05,19.65010636]
[1641023326026,4.10148496,173.09,173.06,4.0]
[1641023326227,4.10148496,173.09,173.06,10.26]
[1641023326425,31.5194,173.16,173.06,10.26]
[1641023326426,4.10148496,173.1,173.06,10.26]
[1641023327125,4.10148496,173.11,173.07,13.58720555]
[1641023328326,4.10148496,173.1,173.07,1.24812044]
[1641023328927,31.5194,173.16,173.07,13.58720555]
[1641023328928,4.10148496,173.11,173.07,13.58720555]
[1641023329527,4.10148496,173.11,173.07,1.24812044]
[1641023330128,4.10148496,173.11,173.06,12.33908511]
[1641023330332,27.66479,173.13,173.05,6.317]
[1641023330733,27.66479,173.13,173.06,4.0]
[1641023330935,31.5194,173.16,173.06,4.0]
[1641023331234,31.5194,173.16,173.06,7.0]
[1641023331732,31.5194,173.16,173.08,27.66479]
[1641023336536,4.10148496,173.12,173.09,1.24815656]
[1641023338635,4.10148496,173.12,173.08,27.66479]
[1641023339438,4.10148496,173.12,173.09,1.24815656]
[1641023339938,4.10148496,173.12,173.07,13.58724167]
[1641023340138,9.85948496,173.12,173.07,13.58724167]
[1641023340640,27.66479,173.1,173.07,13.58724167]
[1641023340841,4.10148496,173.09,173.05,19.64987189]
[1641023341645,4.10148496,173.09,173.04,12.33908511]
[1641023342439,4.10148496,173.09,173.02,7.31078678]
[1641023342440,4.10148496,173.07,173.03,12.33908511]
[1641023342640,31.76627496,173.07,173.03,12.33908511]
[1641023343442,4.10148496,173.06,173.02,19.64987189]
[1641023346542,4.10148496,173.06,173.02,13.58724167]
[1641023346742,4.10148496,173.05,173.02,1.24815656]
[1641023353858,4.10148496,173.05,173.01,47.09418511]
[1641023354057,27.66479,173.07,173.01,34.7551]
[1641023354858,21.67223763,173.07,173.01,34.7551]
[1641023356659,4.07820949,173.09,173.01,62.41989]
[1641023357863,27.66479,173.1,173.01,62.41989]
[1641023357864,4.07820949,173.08,173.01,62.41989]
[1641023358562,4.07820949,173.08,173.01,31.66479]
[1641023359162,4.07820949,173.07,173.01,31.66479]
[1641023359965,4.07820949,173.03,173.02,1.24757594]
[1641023361268,10.35102986,173.09,173.02,1.24757594]
[1641023362068,13.35102986,173.09,173.02,1.24757594]
[1641023362268,10.35102986,173.09,173.02,1.24757594]
[1641023362671,27.66479,173.06,173.02,1.24757594]
[1641023363069,27.66479,173.06,173.01,4.0]
[1641023363469,43.15609357,173.09,173.01,4.0]
[1641023363669,4.10356817,173.02,173.01,4.0]
[1641023372278,9.24356817,173.02,173.01,4.0]
[1641023374380,5.14,173.02,173.01,4.0]
[1641023374581,4.10356817,173.03,173.01,4.0]
[1641023375885,4.10356817,173.04,173.01,4.0]
[1641023376783,31.76835817,173.04,173.01,4.0]
[1641023378384,31.76835817,173.04,172.99,8.48]
[1641023378587,4.10356817,173.04,172.99,8.48]
[1641023383789,4.10356817,173.01,173.0,1.2475383]
[1641023385493,9.71256817,173.01,173.0,1.2475383]
[1641023387894,5.609,173.01,173.0,1.2475383]
[1641023388094,5.609,173.01,172.98,1.2475383]
[1641023388695,4.10407852,173.0,172.98,1.2475383]
[1641023394306,9.15407852,173.0,172.98,1.2475383]
[1641023394909,31.76886852,172.99,172.96,1.2475383]
[1641023395205,4.10407852,172.99,172.96,1.2475383]
[1641023395807,4.10407852,172.98,172.96,1.2475383]
[1641023396506,5.05,173.0,172.96,1.2475383]
[1641023397307,9.15407852,173.0,172.95,30.5341]
[1641023399809,5.05,173.0,172.95,30.5341]
[1641023400010,4.10407852,173.01,172.95,30.5341]
[1641023400608,4.10407852,173.0,172.93,130.09430046]
[1641023401014,27.66479,172.99,172.93,102.42951046]
[1641023402014,27.66479,172.99,172.94,1.24255569]
[1641023403718,4.10407852,172.98,172.94,1.24255569]
[1641023405117,4.10407852,172.98,172.94,28.90734569]
[1641023405520,4.10407852,172.98,172.94,47.30935636]
[1641023406218,4.10407852,172.98,172.95,1.24255569]
[1641023413426,4.10407852,172.97,172.95,1.24255569]
[1641023413628,10.61307852,172.97,172.95,1.24255569]
[1641023415127,4.10407852,172.97,172.95,1.24255569]
[1641023415328,61.26799,173.02,172.94,27.66479]
[1641023416231,4.10476187,172.97,172.95,1.24743672]
[1641023416928,61.26799,173.02,172.94,27.66479]
[1641023417128,6.773,172.99,172.94,27.66479]
[1641023417328,6.773,172.99,172.93,102.42951046]
[1641023417730,4.10479176,172.97,172.95,1.24743373]
[1641023418733,6.773,172.99,172.94,1.24743509]
[1641023419233,4.10149647,172.97,172.93,102.42951046]
[1641023419935,32.38479,172.99,172.93,102.42951046]
[1641023420136,32.38479,172.99,172.94,1.24643742]
[1641023420337,4.72,172.99,172.95,4.0]
[1641023420536,32.80506371,173.05,172.95,4.0]
[1641023420737,4.10146142,172.97,172.96,31.2749]
[1641023421344,6.142e-05,172.97,172.96,86.60448]
[1641023421538,32.80506371,173.05,172.96,86.60448]
[1641023421739,4.10052832,173.01,172.96,106.24787436]
[1641023422540,31.4557,173.06,172.97,1.24653374]
[1641023422738,34.4557,173.06,172.97,1.24653374]
[1641023422938,31.4557,173.06,172.97,1.24653374]
[1641023425244,31.4557,173.06,172.99,27.66479]
[1641023425944,31.4557,173.06,173.0,1.24653374]
[1641023426447,31.4557,173.06,172.99,27.66479]
[1641023427044,31.4557,173.06,173.0,1.24752889]
[1641023427743,31.4557,173.06,172.99,27.66479]
[1641023428347,31.4557,173.06,173.0,1.24778708]
[1641023429049,31.4557,173.06,172.99,27.66479]
[1641023429749,10.35228694,173.05,173.0,1.24777837]
[1641023430450,10.35228694,173.05,172.99,27.66479]
[1641023431049,10.35228694,173.05,173.0,1.24777416]
[1641023431851,10.35228694,173.05,172.99,27.66479]
[1641023432552,10.35228694,173.05,173.0,1.24776971]
[1641023433254,10.35228694,173.05,172.99,27.66479]
[1641023433858,10.35228694,173.05,173.0,1.24776837]
[1641023434559,13.35228694,173.05,173.0,1.24776837]
[1641023435157,13.35228694,173.05,172.99,27.66479]
[1641023435356,10.35228694,173.05,172.99,27.66479]
[1641023435956,10.35228694,173.05,172.99,21.09809505]
[1641023436858,3.0,173.05,172.99,21.09809505]
[1641023437056,31.4557,173.06,172.99,21.09809505]
[1641023437257,3.0,173.05,172.99,21.09809505]
[1641023438057,13.32837321,173.05,172.99,21.09809505]
[1641023439958,10.32837321,173.05,172.99,21.09809505]
[1641023440360,13.32837321,173.05,172.99,21.09809505]
[1641023440661,3.0,173.05,172.99,21.09809505]
[1641023441460,34.4557,173.06,172.99,21.09809505]
[1641023444665,34.4557,173.06,172.96,31.2749]
[1641023445165,40.7097,173.06,172.96,31.2749]
[1641023445565,40.7097,173.06,172.97,1.24521431]
[1641023445765,40.7097,173.06,172.98,27.66479]
[1641023446566,40.7097,173.06,172.96,31.2749]
[1641023447566,40.7097,173.06,172.97,1.24521213]
[1641023447765,40.7097,173.06,172.99,27.66479]
[1641023450075,10.35190088,173.05,172.99,27.66479]
[1641023454180,10.35190088,173.05,172.96,31.2749]
[1641023454880,10.35190088,173.05,172.97,1.24746098]
[1641023456282,10.35190088,173.05,172.99,27.66479]
[1641023457483,13.35190088,173.05,172.99,27.66479]
[1641023457887,10.35190088,173.05,172.99,27.66479]
[1641023458287,10.35190088,173.05,172.99,31.66479]
[1641023458484,10.35190088,173.05,172.99,38.94479]
[1641023458684,10.35190088,173.05,172.99,35.94479]
[1641023459285,10.35190088,173.05,173.0,1.24749533]
[1641023459486,43.15696459,173.09,173.0,1.24749533]
[1641023459687,43.15696459,173.09,173.0,36.89859533]
[1641023460388,43.15696459,173.09,173.03,27.66479]
[1641023460589,10.35190088,173.09,173.03,27.66479]
[1641023462693,10.35190088,173.09,173.05,4.0]
[1641023463191,10.35190088,173.09,173.03,27.66479]
[1641023463393,4.603,173.09,173.03,27.66479]
[1641023463592,4.603,173.09,173.02,4.0]
[1641023463993,4.603,173.09,173.03,1.24755613]
[1641023466395,32.26779,173.09,173.03,1.24755613]
[1641023466795,32.26779,173.09,173.01,1.24755613]
[1641023467597,43.15696459,173.08,173.0,31.4201]
[1641023467799,3.0,173.07,173.0,31.4201]
[1641023468000,43.15696459,173.08,172.96,16.33908511]
[1641023468197,3.0,173.07,172.97,31.4293]
[1641023468400,27.66479,173.03,172.97,31.4293]
[1641023468601,33.57479,173.03,172.96,4.0]
[1641023469601,33.57479,173.03,172.97,1.24812163]
[1641023475208,10.35437401,173.02,172.96,4.0]
[1641023475805,10.35437401,173.02,172.97,1.24810355]
[1641023476706,10.35437401,173.02,172.94,32.3129]
[1641023477307,10.35437401,173.02,172.95,4.0]
[1641023477605,10.35437401,173.02,172.95,5.24808147]
[1641023478204,27.66479,173.03,172.95,5.24808147]
[1641023478408,27.66479,173.03,172.96,1.24808147]
[1641023479107,10.35405129,173.02,172.96,1.24808147]
[1641023480807,27.66479,173.03,172.96,1.24808147]
[1641023481706,4.09538101,172.99,172.96,1.24808147]
[1641023484908,4.09538101,172.97,172.96,1.24808147]
[1641023491618,4.09538101,172.99,172.96,1.24808147]
[1641023493120,4.09538101,172.99,172.96,28.91287147]
[1641023493420,4.09538101,173.0,172.96,41.25195658]
[1641023494020,4.09538101,172.99,172.97,1.24808147]
[1641023496921,30.2971,173.04,172.96,27.66479]
[1641023497124,30.2971,173.04,172.96,57.86289]
[1641023497521,4.10431509,172.99,172.97,1.24814815]
[1641023498320,30.2971,173.04,172.96,27.66479]
[1641023498720,4.10433058,172.99,172.97,1.2481466]
[1641023499524,30.2971,173.04,172.96,27.66479]
[1641023500127,4.10432061,172.99,172.97,1.2481476]
[1641023500927,30.2971,173.04,172.96,27.66479]
[1641023501929,4.10430994,172.99,172.97,1.24814867]
[1641023502530,4.09445369,173.01,172.96,27.66479]
[1641023503128,30.2971,173.04,172.96,27.66479]
[1641023503328,30.2971,173.04,172.97,1.24518648]
[1641023503829,4.09446522,173.01,172.96,27.66479]
[1641023504331,30.2971,173.04,172.96,27.66479]
[1641023504533,30.2971,173.04,172.97,1.2451865]
[1641023505032,4.09446499,173.01,172.96,27.66479]
[1641023505634,30.2971,173.04,172.96,27.66479]
[1641023505831,30.2971,173.04,172.97,1.24518715]
[1641023506033,30.2971,173.04,172.98,123.46703562]
[1641023506233,27.66479,173.07,172.98,128.46203562]
[1641023506433,4.09434677,173.02,172.99,31.0507]
[1641023506733,4.09434677,173.02,172.98,135.46203562]
[1641023506933,4.677e-05,173.02,172.99,3.0]
[1641023507134,4.677e-05,173.02,173.01,4.0]
[1641023507334,4.677e-05,173.02,173.01,31.66479]
[1641023507733,32.80506371,173.1,173.01,31.66479]
[1641023507935,60.46985371,173.13,173.01,31.66479]
[1641023508834,10.3229559,173.12,173.02,1.24528032]
[1641023509336,10.3229559,173.12,173.04,27.66479]
[1641023510334,10.3229559,173.12,173.04,21.09991229]
[1641023511935,43.12801961,173.13,173.04,21.09991229]
[1641023512136,46.12801961,173.13,173.04,21.09991229]
[1641023512541,32.80506371,173.12,173.05,32.2159]
[1641023513943,43.12801961,173.13,173.05,32.2159]
[1641023518751,10.3229559,173.13,173.05,32.2159]
[1641023520551,10.3229559,173.13,173.07,4.0]
[1641023521650,10.3229559,173.13,173.05,37.4129]
[1641023522250,10.3229559,173.13,173.05,32.2159]
[1641023522450,10.3229559,173.13,173.06,1.24900561]
[1641023523253,13.3229559,173.13,173.06,1.24900561]
[1641023523454,27.66479,173.12,173.06,1.24900561]
[1641023523655,27.66479,173.12,173.04,25.09991229]
[1641023523656,27.66479,173.12,173.05,1.24900561]
[1641023525357,10.34470711,173.11,173.05,1.24900561]
[1641023525859,27.66479,173.12,173.04,56.61071229]
[1641023529064,27.66479,173.12,173.04,21.09991229]
[1641023529463,27.66479,173.12,173.02,30.1668]
[1641023532367,10.34626026,173.11,173.03,1.24894264]
[1641023534272,10.34626026,173.11,173.04,4.0]
[1641023534570,10.34626026,173.11,173.04,9.595]
[1641023534869,32.80506371,173.13,173.04,12.595]
[1641023535069,27.66479,173.15,173.05,1.24894264]
[1641023535368,27.66479,173.15,173.05,28.91373264]
[1641023535768,10.34299595,173.14,173.05,41.25281775]
[1641023535968,10.34299595,173.14,173.06,30.3465]
[1641023536469,10.34299595,173.14,173.07,1.24894264]
[1641023539370,55.32958,173.08,173.01,32.80506371]
[1641023539570,3.0,173.05,173.04,12.30660922]
[1641023540172,65.83958647,173.08,173.0,32.80506371]
[1641023540370,65.83958647,173.08,172.98,123.46703562]
[1641023540371,10.34299595,173.07,172.98,123.46703562]
[1641023540770,88.13464371,173.08,172.98,123.46703562]
[1641023540973,55.32958,173.08,172.98,123.46703562]
[1641023541772,55.32958,173.08,172.99,31.4865]
[1641023542573,27.66479,173.08,172.99,31.4865]
[1641023542775,29.4865,173.11,172.99,31.4865]
[1641023543177,32.4865,173.11,172.99,31.4865]
[1641023543374,27.66479,173.09,172.99,31.4865]
[1641023543875,27.66479,173.09,173.01,4.0]
[1641023544074,57.15129,173.11,173.01,4.0]
[1641023546278,3.0,173.1,173.0,27.66479]
[1641023546477,62.56329,173.11,173.0,27.66479]
[1641023547481,57.15129,173.11,173.01,4.0]
[1641023547679,27.66479,173.11,173.01,4.0]
[1641023548080,27.66479,173.11,173.0,27.66479]
[1641023548281,27.66479,173.11,173.04,4.0]
[1641023548480,27.66479,173.11,173.04,10.791]
[1641023549383,27.66479,173.11,173.05,27.66479]
[1641023549583,59.08069,173.14,173.05,27.66479]
[1641023550384,59.08069,173.14,173.01,4.0]
[1641023550585,65.02669,173.14,173.01,35.933]
[1641023551685,68.02669,173.14,173.01,35.933]
[1641023552084,3.0,173.13,173.01,35.933]
[1641023552284,3.0,173.13,173.01,31.933]
[1641023552486,3.0,173.13,173.03,4.0]
[1641023552687,59.08069,173.14,173.03,4.0]
[1641023553885,59.08069,173.14,173.03,8.179]
[1641023554486,59.08069,173.14,173.03,4.179]
[1641023554888,62.08069,173.14,173.01,31.933]
[1641023555088,64.68469,173.14,173.01,31.933]
[1641023555288,67.68469,173.14,173.01,31.933]
[1641023555488,64.68469,173.14,173.01,31.933]
[1641023556290,43.15325628,173.13,173.01,31.933]
[1641023558693,43.15325628,173.13,173.03,4.0]
[1641023558892,43.15325628,173.13,173.03,10.538]
[1641023559093,10.34819257,173.13,173.03,10.538]
[1641023559492,10.34819257,173.13,173.05,27.66479]
[1641023559894,10.34819257,173.13,173.03,6.538]
[1641023560494,10.34819257,173.13,173.02,6.06343555]
[1641023561296,59.08069,173.14,173.01,31.933]
[1641023561495,59.08069,173.14,173.01,36.903]
[1641023562095,59.08069,173.14,173.03,4.0]
[1641023563499,27.66479,173.11,173.03,4.0]
[1641023563696,27.66479,173.11,173.01,36.903]
[1641023564598,27.66479,173.11,173.01,40.903]
[1641023566701,32.02779,173.11,173.01,4.0]
[1641023567501,4.07113195,173.09,173.01,4.0]
[1641023568101,4.07113195,173.09,173.0,55.32958]
[1641023568303,4.07113195,173.09,172.98,29.9014]
[1641023568802,7.07113195,173.09,172.98,29.9014]
[1641023569004,4.07113195,173.07,172.98,29.9014]
[1641023569202,10.23113195,173.07,172.98,29.9014]
[1641023569503,27.66479,173.05,172.98,29.9014]
[1641023570401,27.66479,173.05,172.96,27.66479]
[1641023571105,27.66479,173.05,172.96,39.88012027]
[1641023571106,4.07113195,173.0,172.96,39.88012027]
[1641023572503,27.66479,173.05,172.96,39.88012027]
[1641023572904,4.10405535,173.0,172.96,39.88012027]
[1641023573709,27.66479,173.05,172.96,39.88012027]
[1641023574413,4.10406824,173.0,172.96,39.88012027]
[1641023575113,29.9346,173.04,172.96,39.88012027]
[1641023575715,4.10406783,173.0,172.96,39.88012027]
[1641023576214,4.10403617,173.01,172.96,39.88012027]
[1641023577014,4.10403617,173.01,172.98,4.0]
[1641023577516,31.6261,173.07,172.98,4.0]
[1641023577715,32.80506371,173.08,172.98,4.0]
[1641023577915,32.80506371,173.08,173.02,4.0]
[1641023578116,32.80506371,173.08,173.02,8.757]
[1641023578919,32.80506371,173.08,173.02,4.757]
[1641023579121,27.66479,173.11,173.02,4.757]
[1641023580321,10.34918089,173.1,173.03,1.24807517]
[1641023581121,10.34918089,173.1,173.02,4.757]
[1641023581822,10.34918089,173.1,173.01,45.94369208]
[1641023582224,10.34918089,173.1,173.02,1.24808452]
[1641023583428,27.66479,173.11,173.01,39.88012027]
[1641023583626,27.66479,173.11,173.02,12.21533027]
[1641023583829,27.66479,173.11,173.02,18.27884438]
[1641023584426,27.66479,173.11,173.02,1.24807682]
[1641023584427,10.34912147,173.1,173.02,1.24807682]
[1641023585628,27.66479,173.08,173.02,1.24807682]
[1641023586029,10.34912147,173.1,173.02,4.0]
[1641023586930,10.34912147,173.1,173.03,1.24810276]
[1641023587630,27.66479,173.06,173.03,1.24810276]
[1641023587831,27.66479,173.06,173.01,18.27889662]
[1641023587832,27.66479,173.06,173.01,1.24807172]
[1641023588932,60.46985371,173.11,173.01,1.24807172]
[1641023589533,60.46985371,173.11,173.0,30.0578]
[1641023589734,27.66479,173.11,173.0,30.0578]
[1641023590133,3.0,173.1,173.0,30.0578]
[1641023590333,3.0,173.1,173.01,1.2480647]
[1641023590334,3.0,173.09,173.01,1.2480647]
[1641023591134,3.0,173.05,173.0,12.21533027]
[1641023591335,7.186,173.05,173.0,13.46334797]
[1641023591533,4.186,173.05,173.0,1.2480177]
[1641023591734,27.66479,173.04,173.0,1.2480177]
[1641023592236,30.66479,173.04,172.97,12.21533027]
[1641023592438,10.34955795,173.03,172.97,1.2479492]
[1641023594744,4.10448383,172.98,172.96,27.66479]
[1641023595348,10.34955795,173.03,172.97,1.24794011]
[1641023596447,4.10456179,172.98,172.96,27.66479]
[1641023597246,10.34955795,173.03,172.97,1.24793716]
[1641023597846,4.10445856,172.98,172.96,27.66479]
[1641023598951,10.34955795,173.03,172.97,1.24795311]
[1641023599654,10.34955795,173.03,172.96,27.66479]
[1641023599655,4.10457384,172.98,172.96,27.66479]
[1641023600152,10.34955795,173.03,172.97,1.24794665]
[1641023600753,10.34955795,173.03,172.97,5.86894665]
[1641023600953,4.10430743,172.99,172.97,4.621]
[1641023601554,27.66479,173.04,172.97,4.621]
[1641023601755,4.10379037,173.01,172.98,1.24801757]
[1641023602356,27.66479,173.04,172.98,1.24801757]
[1641023603455,4.10393787,173.01,172.97,19.5272402]
[1641023604356,4.236,173.02,172.97,1.24800282]
[1641023604357,4.10413796,173.0,172.97,1.24800282]
[1641023605160,27.66479,173.04,172.96,39.88012027]
[1641023605361,4.1045757,172.98,172.96,27.66479]
[1641023606061,10.35408155,173.03,172.97,1.24793675]
[1641023606864,4.10414716,173.0,172.96,44.70112027]
[1641023607366,27.66479,173.04,172.96,44.70112027]
[1641023607563,4.10396288,173.01,172.97,19.5273067]
[1641023608664,27.66479,173.04,172.97,19.5273067]
[1641023609064,27.66479,173.04,172.97,13.46333059]
[1641023609264,4.10397839,173.01,172.97,1.24800032]
[1641023610066,27.66479,173.04,172.97,19.5272637]
[1641023610864,4.1038676,173.01,172.97,19.5272637]
[1641023611064,4.1038676,173.01,172.97,26.2422637]
[1641023611666,27.66479,173.04,172.98,1.24800032]
[1641023612266,4.10371195,173.02,172.98,13.46333059]
[1641023613067,4.10384336,173.01,172.98,1.24800032]
[1641023613667,27.66479,173.04,172.98,1.24800032]
[1641023614269,27.66479,173.04,172.97,18.27926338]
[1641023614469,4.10389737,173.01,172.97,18.27926338]
[1641023615068,27.66479,173.04,172.97,12.21533027]
[1641023615271,4.09324236,173.03,172.97,1.24477621]
[1641023616367,4.09327606,173.02,172.97,1.24477621]
[1641023617073,4.0932399,173.03,172.97,1.24477621]
[1641023617371,4.0932399,173.03,172.97,7.99277621]
[1641023617872,27.66479,173.04,172.98,1.24477621]
[1641023618369,27.66479,173.04,172.96,27.66479]
[1641023618569,4.09323875,173.03,172.97,1.24477657]
[1641023619269,4.10388316,173.01,172.97,19.52405106]
[1641023619970,27.66479,173.04,172.97,19.52405106]
[1641023620771,4.10371068,173.02,172.98,12.21533027]
[1641023621571,27.66479,173.04,172.98,12.21533027]
[1641023621870,4.10387526,173.01,172.98,6.688]
[1641023622776,27.66479,173.04,172.98,6.688]
[1641023622971,27.66479,173.04,172.99,1.24477657]
[1641023623372,27.66479,173.04,172.97,19.52729101]
[1641023623373,4.1038009,173.01,172.97,19.52729101]
[1641023623973,9.6688009,173.01,172.97,19.52729101]
[1641023624174,5.565,173.01,172.97,19.52729101]
[1641023624874,5.565,173.01,172.97,13.46334679]
[1641023625076,4.10441922,172.99,172.96,1.24801652]
[1641023626177,4.10453793,172.98,172.95,31.1706]
[1641023626577,4.10453793,172.98,172.94,12.21533027]
[1641023627077,27.66479,173.0,172.94,12.21533027]
[1641023627277,27.66479,173.0,172.96,1.24794384]
[1641023627879,4.10446989,172.98,172.95,1.24794962]
[1641023628479,27.66479,173.0,172.95,1.24794962]
[1641023628678,4.10433288,172.99,172.95,13.46327989]
[1641023629280,27.66479,173.0,172.95,13.46327989]
[1641023629779,4.10446058,172.98,172.95,1.24794962]
[1641023630582,27.66479,173.0,172.94,19.52745881]
[1641023630782,27.66479,173.0,172.94,23.75745881]
[1641023630982,27.66479,173.04,172.94,23.75745881]
[1641023631483,4.10443651,172.98,172.95,1.24794962]
[1641023632584,4.10432466,172.99,172.95,13.46327989]
[1641023633588,4.10409265,173.0,172.98,4.0]
[1641023633784,4.10409265,173.0,172.98,9.74]
[1641023633984,4.10409265,173.0,172.98,5.74]
[1641023634284,58.40599,173.07,172.98,5.74]
[1641023634485,4.10383775,173.01,172.99,1.24794962]
[1641023635085,10.35142493,173.06,172.97,12.21533027]
[1641023635286,10.35142493,173.06,172.98,33.41002152]
[1641023635686,10.35142493,173.06,172.98,40.10002152]
[1641023635985,4.10381373,173.01,172.99,1.24802152]
[1641023636487,10.35142493,173.06,172.98,6.69]
[1641023637287,4.10373004,173.01,172.99,1.24802361]
[1641023638089,27.66479,173.04,172.97,18.2792254]
[1641023638889,4.1039215,173.01,172.97,19.52722986]
[1641023639589,30.0555,173.03,172.97,13.46333473]
[1641023639791,4.1044246,172.98,172.97,1.24800446]
[1641023640790,30.0555,173.03,172.96,1.24794821]
[1641023641590,30.0555,173.03,172.95,4.0]
[1641023641792,4.10447506,172.98,172.95,4.0]
[1641023641992,4.10447506,172.98,172.94,18.27951481]
[1641023642392,27.66479,173.01,172.94,1.24793473]
[1641023643193,4.0895747,173.0,172.94,1.24793473]
[1641023643994,30.0555,173.03,172.94,1.24793473]
[1641023644193,30.0555,173.03,172.95,4.0]
[1641023645095,4.08916721,173.02,172.95,4.0]
[1641023645495,4.08916721,173.02,172.94,7.66993473]
[1641023645895,4.10433048,172.99,172.95,13.463265]
[1641023646095,4.10433048,172.99,172.95,17.463265]
[1641023646596,57.72029,173.03,172.96,1.24793473]
[1641023647393,4.10437596,172.99,172.95,12.21533027]
[1641023647996,57.72029,173.03,172.95,12.21533027]
[1641023648696,30.0555,173.03,172.95,18.59333027]
[1641023648897,4.10437359,172.99,172.95,19.841265]
[1641023649297,30.0555,173.03,172.96,1.24793473]
[1641023650097,4.10434227,172.99,172.95,18.59333027]
[1641023650703,57.72029,173.03,172.96,1.24795956]
[1641023651501,57.72029,173.03,172.95,12.21533027]
[1641023651703,4.10437207,172.99,172.95,12.21533027]
[1641023652804,57.72029,173.03,172.95,1.2479594]
[1641023653405,4.10441138,172.99,172.95,13.46328967]
[1641023653805,57.72029,173.03,172.95,13.46328967]
[1641023654607,4.10437592,172.99,172.95,12.21533027]
[1641023655408,57.72029,173.03,172.95,12.21533027]
[1641023656410,4.10439315,172.99,172.95,12.21533027]
[1641023657111,57.72029,173.03,172.95,12.21533027]
[1641023657910,57.72029,173.03,172.94,1.2479594]